bitfinex/quotes_ETHUSD_20250404
["timestamp","ask_amount","ask_price","bid_price","bid_amount"]
[1743793161978,5.54021,1805.0,1804.7,0.7912]
[1743793162569,5.54021,1805.0,1804.7,6.33228]
[1743793162985,5.62,1805.0,1804.7,11.87321]
[1743793163166,5.62,1805.0,1804.7,11.87307]
[1743793163612,5.62,1805.0,1804.8,5.54076]
[1743793163902,5.62,1805.0,1804.7,6.33212]
[1743793164081,11.16039,1805.0,1804.7,0.7912]
[1743793164480,5.62,1805.0,1804.7,6.33207]
[1743793164690,5.62,1805.0,1804.8,5.54073]
[1743793165069,5.62,1805.0,1804.8,11.73150473]
[1743793165281,5.62,1805.0,1804.8,6.19077473]
[1743793165687,5.62,1805.0,1804.8,11.73139473]
[1743793165894,8.53925,1805.3,1805.0,5.54012]
[1743793166093,5.619,1805.2,1804.9,6.33009]
[1743793166398,5.619,1805.2,1804.9,7.63757745]
[1743793166605,3.0,1805.3,1804.9,1.25208847]
[1743793166802,5.53836,1805.6,1805.3,0.7884]
[1743793167104,11.15776,1805.5,1805.3,0.7884]
[1743793167288,16.69657,1805.5,1805.3,0.7884]
[1743793167490,6.03231973,1805.5,1805.1,0.8035]
[1743793167799,5.5393,1805.3,1805.1,0.8035]
[1743793167999,11.07885,1805.3,1805.1,0.8035]
[1743793168304,5.5393,1805.3,1805.1,0.8035]
[1743793168473,5.53955,1805.2,1805.1,0.8035]
[1743793168675,5.53955,1805.2,1804.9,0.8242]
[1743793168875,11.15897,1805.1,1804.9,0.8242]
[1743793169574,5.619,1805.1,1804.7,0.8235]
[1743793169976,5.54045,1805.0,1804.7,0.8235]
[1743793170208,5.54051,1804.9,1804.7,0.8235]
[1743793171188,5.9594811,1805.0,1804.7,6.36453]
[1743793171705,0.4192611,1805.0,1804.7,6.36453]
[1743793171911,5.618,1804.9,1804.7,11.90551]
[1743793172208,5.618,1804.9,1804.8,5.54078]
[1743793172413,8.5396,1805.2,1804.8,12.271946]
[1743793172591,5.618,1805.1,1804.9,5.5404]
[1743793172786,11.15702,1805.4,1805.0,0.7739]
[1743793173008,5.618,1805.4,1805.1,5.5397]
[1743793173206,11.15697,1805.4,1805.1,5.5397]
[1743793173905,5.618,1805.4,1805.1,11.0794]
[1743793174107,5.618,1805.5,1805.3,0.8188]
[1743793174497,11.15665,1805.5,1805.3,0.8188]
[1743793174890,5.618,1805.5,1805.3,0.8188]
[1743793176410,11.15685,1805.5,1805.3,0.8188]
[1743793176723,11.57508615,1805.5,1805.3,0.8188]
[1743793176935,5.53907,1805.4,1805.1,0.8143]
[1743793177230,11.57493615,1805.5,1805.1,11.89387]
[1743793177729,11.57493615,1805.5,1805.1,11.89374]
[1743793177931,11.57493615,1805.5,1805.2,5.53953]
[1743793178229,5.618,1805.5,1805.3,5.53901]
[1743793178405,11.15663,1805.5,1805.4,0.815]
[1743793178995,5.618,1805.5,1805.2,11.83869]
[1743793179331,3.0,1805.6,1805.3,5.53922]
[1743793179532,5.617,1805.5,1805.4,6.29883]
[1743793180200,5.617,1805.5,1805.4,0.7599]
[1743793180995,5.5391,1805.4,1805.2,0.7918]
[1743793181199,5.5391,1805.4,1804.8,5.08004834]
[1743793181200,9.32148,1805.4,1804.9,0.7918]
[1743793181400,5.53999,1805.1,1804.9,0.7918]
[1743793181600,11.15599,1805.1,1804.9,0.7918]
[1743793181804,6.2271718,1805.0,1804.7,6.34938]
[1743793182328,6.2271718,1805.0,1804.7,0.8083]
[1743793182542,6.65122428,1805.0,1804.7,0.8083]
[1743793182920,12.19164428,1805.0,1804.7,0.8083]
[1743793183121,12.19164428,1805.0,1804.7,6.34925]
[1743793183122,6.65122428,1805.0,1804.7,6.34925]
[1743793184040,16.69597,1805.1,1804.8,5.54066]
[1743793184222,11.15592,1805.1,1804.7,6.34923]
[1743793184542,6.33856,1805.0,1804.5,0.7631]
[1743793184703,5.54109,1804.7,1804.5,0.7631]
[1743793184909,5.54106,1804.8,1804.5,0.7631]
[1743793185320,5.54106,1804.8,1804.5,6.30473]
[1743793185922,11.08205,1804.8,1804.5,0.7631]
[1743793186220,5.616,1804.7,1804.5,0.7631]
[1743793186421,5.616,1804.7,1804.5,11.84603]
[1743793186817,5.616,1804.7,1804.5,11.8461]
[1743793187021,5.53989,1805.1,1804.8,5.54075]
[1743793187221,5.616,1805.0,1804.8,5.54075]
[1743793187419,5.616,1805.0,1804.8,5.54067]
[1743793187625,5.616,1805.0,1804.7,6.30665]
[1743793187843,5.616,1805.0,1804.8,5.54077]
[1743793188220,5.616,1805.0,1804.7,7.491342]
[1743793188420,5.616,1805.0,1804.7,13.032262]
[1743793188760,5.616,1805.0,1804.7,13.032252]
[1743793188910,5.616,1805.0,1804.8,5.54071]
[1743793189115,5.616,1805.0,1804.8,6.8439232]
[1743793189321,5.616,1805.0,1804.8,5.54068]
[1743793189951,5.616,1805.0,1804.8,5.54061]
[1743793190254,5.616,1805.0,1804.7,6.30665]
[1743793190456,5.54048,1804.9,1804.7,0.7656]
[1743793190625,5.616,1805.0,1804.7,0.7656]
[1743793190626,11.1564,1805.0,1804.7,0.7656]
[1743793190821,16.69679,1805.0,1804.7,0.7656]
[1743793191023,5.616,1805.0,1804.7,0.7656]
[1743793191221,5.616,1805.0,1804.8,5.54067]
[1743793191434,5.616,1805.0,1804.8,12.26605]
[1743793191632,5.616,1805.0,1804.8,12.26606]
[1743793191846,5.616,1805.0,1804.9,5.54047]
[1743793192061,8.53922,1805.4,1804.9,0.87810153]
[1743793192232,5.616,1805.4,1805.3,0.8227]
[1743793192832,11.15493,1805.4,1805.1,6.30071]
[1743793193037,5.616,1805.4,1805.2,5.53952]
[1743793193233,5.616,1805.4,1805.2,11.0789]
[1743793193525,5.53837,1805.6,1805.3,5.53924]
[1743793193725,5.615,1805.7,1805.5,0.7851]
[1743793194672,5.53782,1805.8,1805.5,0.7851]
[1743793194870,5.53782,1805.8,1805.5,6.32369]
[1743793194871,5.615,1805.7,1805.5,6.32369]
[1743793195078,5.615,1805.7,1805.5,0.7851]
[1743793195559,11.15304,1805.7,1805.5,0.7851]
[1743793196326,16.69127,1805.7,1805.3,6.34251]
[1743793196654,11.15304,1805.7,1805.3,6.34251]
[1743793196860,5.53836,1805.6,1805.3,6.34251]
[1743793197062,16.69125,1805.7,1805.3,6.34251]
[1743793197493,16.69126,1805.7,1805.3,6.34251]
[1743793197633,11.15304,1805.7,1805.3,6.34241]
[1743793198333,11.15304,1805.7,1805.4,5.53885]
[1743793199341,11.15304,1805.7,1805.4,5.5388]
[1743793199741,5.615,1805.7,1805.4,5.5388]
[1743793200140,11.15302,1805.7,1805.4,5.5388]
[1743793200326,11.15302,1805.7,1805.3,6.976731]
[1743793200327,5.53874,1805.5,1805.1,6.30292]
[1743793200546,17.48324,1805.7,1805.3,5.53911]
[1743793200730,5.614,1805.8,1805.6,5.53818]
[1743793200933,5.614,1805.9,1805.7,5.53799]
[1743793201128,0.28842074,1806.5,1805.7,6.645627]
[1743793201360,5.5361,1806.4,1805.9,5.5374]
[1743793201557,5.53659,1806.2,1805.8,11.87866]
[1743793201763,11.92239,1806.5,1806.1,5.53667]
[1743793201971,5.53639,1806.3,1805.9,5.53716]
[1743793202167,6.3868,1806.5,1805.8,0.8035]
[1743793202168,5.53691,1806.1,1805.8,0.8035]
[1743793202598,16.68692,1806.1,1805.8,0.8035]
[1743793202790,16.68692,1806.1,1805.6,6.3159]
[1743793202791,12.481581,1806.1,1805.6,6.3159]
[1743793202965,11.92789,1806.1,1805.6,6.31594]
[1743793203166,3.0,1806.0,1805.6,0.7777]
[1743793203406,5.53853,1805.6,1805.0,0.7777]
[1743793203572,11.15143,1805.6,1805.3,0.7531]
[1743793203893,16.68998,1805.6,1805.3,0.7531]
[1743793204096,5.53908,1805.4,1805.0,5.5401]
[1743793204398,5.53908,1805.4,1805.1,5.53985]
[1743793204592,6.33355,1805.6,1805.2,5.5395]
[1743793204798,5.613,1805.5,1805.2,6.32325]
[1743793205296,5.53982,1805.2,1804.8,0.7839]
[1743793205465,5.53982,1805.2,1804.8,6.957068]
[1743793205665,5.612,1805.1,1804.8,6.957068]
[1743793205893,5.612,1805.1,1804.8,6.956988]
[1743793206390,5.612,1805.1,1804.9,11.08074]
[1743793206561,5.612,1805.1,1805.0,5.54016]
[1743793206757,5.612,1805.1,1805.0,6.64821]
[1743793207461,14.49839501,1805.4,1805.0,6.64821]
[1743793207462,14.57226501,1805.4,1805.0,12.18827]
[1743793207662,14.15195,1805.4,1805.1,5.5398]
[1743793207891,5.613,1805.4,1805.2,6.34319]
[1743793208195,5.613,1805.4,1805.2,6.34309]
[1743793208593,5.613,1805.4,1805.2,0.8037]
[1743793208897,5.613,1805.4,1805.2,5.53946]
[1743793209197,5.613,1805.4,1805.3,0.553946]
[1743793209496,5.613,1805.4,1805.3,5.53924]
[1743793209693,5.613,1805.4,1805.2,5.53943]
[1743793209899,5.613,1805.4,1805.3,5.53924]
[1743793210107,5.613,1805.4,1805.2,11.07883]
[1743793210473,5.613,1805.4,1805.2,5.5394]
[1743793210678,5.613,1805.4,1805.2,11.63272]
[1743793210996,5.613,1805.4,1805.2,11.63276]
[1743793211179,5.613,1805.4,1805.2,0.55394]
[1743793211381,5.613,1805.4,1805.1,5.53985]
[1743793211597,5.613,1805.4,1805.2,5.53935]
[1743793211804,5.613,1805.4,1805.1,5.53974]
[1743793212101,5.613,1805.4,1804.8,6.29532]
[1743793212102,5.53965,1805.2,1804.8,6.29532]
[1743793212296,5.53965,1805.2,1804.8,6.924852]
[1743793212511,5.613,1805.4,1805.0,5.54006]
[1743793212691,5.613,1805.4,1805.2,6.29422]
[1743793212895,6.33384,1805.9,1805.5,5.53836]
[1743793213091,11.94529,1806.1,1805.6,0.05538263]
[1743793213405,5.53589,1806.4,1805.7,6.29242]
[1743793213406,5.612,1806.4,1805.7,6.29242]
[1743793213604,5.612,1806.4,1805.8,5.53766]
[1743793213804,8.53631,1806.3,1805.9,5.53725]
[1743793214007,8.53631,1806.3,1805.9,11.07447]
[1743793214170,29.13028837,1806.8,1806.0,0.7547]
[1743793214171,5.53498,1806.7,1806.0,0.7547]
[1743793214504,0.553498,1806.6,1806.0,6.29177]
[1743793214809,6.4084,1806.8,1806.5,5.53536]
[1743793214978,5.612,1806.8,1806.5,11.07076]
[1743793215306,0.05,1806.9,1806.7,5.5348]
[1743793215480,0.05,1806.9,1806.8,5.53464]
[1743793216803,0.05,1806.9,1806.8,6.32374]
[1743793217009,0.05,1806.9,1806.7,5.5348]
[1743793217203,0.05,1806.9,1806.7,5.590142]
[1743793217376,0.05,1806.9,1806.7,11.06962]
[1743793217578,0.05,1806.9,1806.8,5.53464]
[1743793217912,0.05,1806.9,1806.7,5.5348]
[1743793218206,0.05,1806.9,1806.6,6.32434]
[1743793218373,5.58434,1806.9,1806.6,0.7891]
[1743793218578,5.58434,1806.9,1806.5,11.07098]
[1743793218779,0.05,1806.9,1806.6,11.07028]
[1743793218975,0.05,1806.9,1806.6,5.5351]
[1743793219375,0.05,1806.9,1806.5,5.53555]
[1743793219376,5.58437,1806.9,1806.5,5.53555]
[1743793219590,5.58437,1806.9,1806.3,6.32723]
[1743793219591,5.53465,1806.8,1806.4,5.53573]
[1743793219787,5.53574,1806.5,1806.0,6.36968]
[1743793219987,5.53629,1806.3,1805.9,5.53723]
[1743793220178,11.14488,1806.4,1806.0,5.53693]
[1743793220693,11.14488,1806.4,1806.0,11.07388]
[1743793220893,5.53634,1806.3,1805.9,5.53738]
[1743793221084,11.1449,1806.4,1805.9,5.53719]
[1743793221285,16.68103,1806.4,1806.0,5.53697]
[1743793221484,11.1449,1806.4,1806.1,5.53677]
[1743793221813,11.1449,1806.4,1806.0,5.53691]
[1743793221991,5.53618,1806.3,1806.0,5.53691]
[1743793222508,5.53649,1806.2,1805.9,5.5374]
[1743793222709,5.53639,1806.3,1805.9,5.5374]
[1743793222886,5.53671,1806.2,1805.8,0.8327]
[1743793223086,5.53618,1806.3,1805.9,5.53727]
[1743793223312,6.090218,1806.2,1805.8,6.37028]
[1743793223511,0.553618,1806.2,1805.9,5.53731]
[1743793223711,5.53589,1806.4,1806.0,11.07407]
[1743793223918,11.14489,1806.4,1806.1,5.53674]
[1743793224121,5.609,1806.4,1806.1,5.53664]
[1743793224281,5.53528,1806.6,1805.8,6.3704]
[1743793224485,5.659,1806.9,1806.7,5.53472]
[1743793224719,5.659,1806.9,1806.8,5.53464]
[1743793225104,5.659,1806.9,1806.7,5.5348]
[1743793225507,5.659,1806.9,1806.6,6.30492]
[1743793225707,6.2249,1806.9,1806.6,5.53505]
[1743793225987,6.2249,1806.9,1806.5,5.53536]
[1743793226219,5.659,1806.9,1806.5,5.59088843]
[1743793226523,5.659,1806.9,1806.2,5.53637]
[1743793226524,5.53538,1806.6,1806.2,5.53637]
[1743793226682,5.53605,1806.4,1805.9,11.07453]
[1743793226887,5.53605,1806.4,1806.0,5.53698]
[1743793227108,5.53605,1806.4,1806.0,11.0739]
[1743793227419,11.07215,1806.4,1806.0,5.53692]
[1743793227580,5.609,1806.5,1805.8,6.3169]
[1743793227581,5.53663,1806.2,1805.8,6.3169]
[1743793227786,5.53713,1806.0,1805.6,5.53808]
[1743793227994,11.14608,1806.1,1805.7,5.53791]
[1743793228194,5.609,1806.1,1805.4,0.8062]
[1743793228394,5.609,1806.1,1805.5,5.53848]
[1743793228395,5.53764,1805.9,1805.5,5.53848]
[1743793228596,8.53713,1806.0,1805.5,0.0553797]
[1743793228597,3.0,1806.0,1805.5,0.0553797]
[1743793228799,3.0,1806.0,1805.7,5.53775]
[1743793229325,5.5381,1805.7,1804.9,6.3665]
[1743793229617,5.53874,1805.5,1805.1,5.53978]
[1743793229803,5.53874,1805.5,1805.1,6.647649]
[1743793230019,5.53874,1805.5,1805.1,5.53968]
[1743793230525,11.14635,1805.6,1805.2,5.53941]
[1743793230699,11.14635,1805.6,1805.3,5.53924]
[1743793231083,11.14635,1805.6,1805.2,11.07876]
[1743793231290,5.609,1805.6,1805.5,5.53852]
[1743793232716,11.14732,1805.6,1805.3,6.33371]
[1743793233217,11.14747,1805.6,1805.3,6.33371]
[1743793233421,11.14747,1805.6,1805.3,0.7945]
[1743793233625,5.53868,1805.5,1805.1,6.32312]
[1743793233814,12.1351418,1805.6,1805.2,5.53954]
[1743793233992,12.1351418,1805.6,1805.2,5.59475932]
[1743793234188,12.1351418,1805.6,1805.3,5.53923]
[1743793234393,11.14733,1805.6,1805.3,5.53923]
[1743793234619,5.609,1805.6,1805.4,5.53879]
[1743793234789,5.609,1805.6,1805.5,5.53863]
[1743793235623,5.609,1806.1,1805.6,0.8044]
[1743793235923,3.0,1806.0,1805.4,5.53888]
[1743793236104,5.53775,1805.8,1805.4,11.07765]
[1743793236285,5.53805,1805.7,1805.4,5.53877]
[1743793236487,6.3777,1805.7,1805.2,5.53949]
[1743793236716,5.53881,1805.5,1805.1,6.36355]
[1743793237021,5.53895,1805.4,1805.0,11.08012]
[1743793237186,5.53895,1805.4,1805.1,5.53985]
[1743793237393,5.53868,1805.5,1805.2,5.53954]
[1743793237730,3.0,1805.6,1805.1,5.53985]
[1743793237902,5.53874,1805.5,1805.2,5.53934]
[1743793238102,5.53874,1805.5,1805.1,11.0796]
[1743793238301,8.53834,1805.6,1805.2,5.53944]
[1743793238505,5.53869,1805.5,1805.2,5.53944]
[1743793238700,5.53869,1805.5,1805.1,5.5398]
[1743793238912,5.53869,1805.5,1805.1,11.0795]
[1743793239119,5.53903,1805.4,1805.0,6.731112]
[1743793239307,5.53926,1805.3,1805.0,6.731112]
[1743793239502,5.53971,1805.2,1804.8,5.54074]
[1743793239940,5.54016,1805.0,1804.7,6.34765]
[1743793240240,5.54052,1804.9,1804.7,0.8066]
[1743793240418,11.08118,1804.9,1804.5,5.54169]
[1743793240600,5.54109,1804.7,1804.4,5.54197]
[1743793240807,6.32799,1804.8,1804.4,11.08385]
[1743793241032,6.32799,1804.8,1804.4,5.54188]
[1743793241335,6.32799,1804.8,1804.3,5.54729]
[1743793241648,5.5415,1804.6,1804.3,0.005]
[1743793242315,5.54185,1804.5,1804.3,0.005]
[1743793242727,5.54139,1804.6,1804.3,0.005]
[1743793243417,11.715189,1804.7,1804.3,5.54725]
[1743793243815,5.54153,1804.6,1804.3,5.54725]
[1743793244020,6.4574428,1804.6,1804.3,0.005]
[1743793244216,5.61,1804.5,1804.3,0.005]
[1743793244634,5.61,1804.5,1804.3,5.54728]
[1743793244839,5.61,1804.5,1804.4,5.542]
[1743793245223,3.0,1804.8,1804.6,5.54125]
[1743793245917,3.0,1804.8,1804.5,5.54167]
[1743793246121,8.5408,1804.8,1804.5,5.54167]
[1743793246520,11.15049,1804.9,1804.5,5.54157]
[1743793246718,11.15047,1804.9,1804.5,5.5417]
[1743793246922,11.15047,1804.9,1804.5,11.0834]
[1743793247150,5.61,1804.9,1804.6,5.54125]
[1743793247714,11.15062,1804.9,1804.5,11.08318]
[1743793248027,11.08207,1804.8,1804.4,5.54195]
[1743793248223,5.54102,1804.8,1804.4,5.54195]
[1743793248426,5.54134,1804.7,1804.3,5.54726]
[1743793248630,5.54156,1804.6,1804.3,5.54724]
[1743793248829,5.54156,1804.6,1804.3,0.005]
[1743793249461,5.54134,1804.7,1804.3,5.54727]
[1743793249853,3.0,1804.7,1804.3,11.08947]
[1743793250055,3.0,1804.7,1804.3,5.54717]
[1743793250274,3.0,1804.7,1804.3,5.54726]
[1743793250574,8.5412,1804.7,1804.3,5.54715]
[1743793250921,0.7668,1804.8,1804.3,0.005]
[1743793250922,6.2921,1804.4,1804.3,0.005]
[1743793251147,11.9031,1804.4,1804.3,0.005]
[1743793251921,14.9031,1804.4,1804.3,0.005]
[1743793253217,9.3611,1804.4,1804.3,0.005]
[1743793253424,14.9031,1804.4,1804.3,0.005]
[1743793253673,5.611,1804.4,1804.3,0.005]
[1743793254469,5.611,1804.4,1804.3,5.54731]
[1743793254759,5.611,1804.4,1804.3,0.005]
[1743793255630,5.611,1804.4,1804.3,5.54731]
[1743793256255,0.7833,1804.9,1804.6,5.54125]
[1743793256435,6.3953,1804.9,1804.6,5.54125]
[1743793256634,11.93578,1804.9,1804.6,5.54125]
[1743793257138,5.54085,1804.8,1804.5,5.54165]
[1743793257333,5.54127,1804.7,1804.3,11.08948]
[1743793257751,5.54157,1804.6,1804.3,0.005]
[1743793257951,6.3813,1804.5,1804.3,0.005]
[1743793258169,6.3813,1804.5,1804.3,5.54728]
[1743793258762,6.3813,1804.5,1804.3,0.005]
[1743793259167,11.92305,1804.5,1804.3,0.005]
[1743793259565,6.3813,1804.5,1804.3,0.005]
[1743793259876,6.3813,1804.5,1804.3,5.54713]
[1743793260070,6.3813,1804.5,1804.3,0.005]
[1743793260777,5.612,1804.5,1804.3,11.08939]
[1743793260941,5.612,1804.5,1804.3,5.54717]
[1743793261140,5.612,1804.5,1804.3,11.08937]
[1743793261342,5.612,1804.5,1804.4,5.542]
[1743793261872,0.8088,1804.7,1804.5,5.5415]
[1743793262073,5.542,1804.4,1804.3,0.005]
[1743793262253,8.542,1804.4,1804.3,0.005]
[1743793262456,9.2981,1804.4,1804.3,0.005]
[1743793263673,3.7561,1804.4,1804.3,0.005]
[1743793263902,5.542,1804.4,1804.3,0.005]
[1743793264171,11.49060079,1804.5,1804.3,0.005]
[1743793264377,5.542,1804.4,1804.3,0.005]
[1743793265680,5.94865079,1804.5,1804.3,0.005]
[1743793265979,11.49062079,1804.5,1804.3,0.005]
[1743793266143,3.0,1804.5,1804.3,5.54721]
[1743793266476,3.0,1804.5,1804.3,5.54718]
[1743793266777,3.0,1804.5,1804.3,0.005]
[1743793266981,8.54184,1804.5,1804.3,0.005]
[1743793267273,8.5417,1804.5,1804.3,0.005]
[1743793267858,3.0,1804.5,1804.3,0.005]
[1743793268278,3.0,1804.5,1804.3,5.54716]
[1743793268573,5.612,1804.6,1804.4,5.54188]
[1743793268783,11.15339,1804.6,1804.3,0.005]
[1743793269078,6.3664,1804.4,1804.3,0.005]
[1743793269580,0.8244,1804.4,1804.3,0.005]
[1743793269966,11.93819,1804.6,1804.3,0.005]
[1743793270189,5.54083,1804.8,1804.3,0.005]
[1743793270347,5.612,1804.7,1804.5,5.54164]
[1743793270543,5.54112,1804.7,1804.4,5.54194]
[1743793270751,5.54112,1804.7,1804.3,6.32198]
[1743793271046,5.612,1804.8,1804.6,5.54127]
[1743793271274,5.54124,1804.7,1804.3,12.496348]
[1743793271468,11.08263,1804.7,1804.3,6.954098]
[1743793271670,5.54142,1804.6,1804.3,6.954098]
[1743793271848,5.54142,1804.6,1804.3,6.32188]
[1743793272183,6.34842,1804.6,1804.3,5.54718]
[1743793272348,6.34842,1804.6,1804.3,0.005]
[1743793272887,0.807,1804.6,1804.3,5.54731]
[1743793273054,0.807,1804.6,1804.3,11.08952]
[1743793273252,11.9183,1804.8,1804.4,5.54197]
[1743793273451,11.08274,1804.7,1804.3,12.20389403]
[1743793273676,5.54127,1804.7,1804.4,5.54173]
[1743793273870,6.3775,1804.8,1804.3,6.66179403]
[1743793274084,5.5417,1804.6,1804.3,0.005]
[1743793274281,5.5418,1804.5,1804.3,0.005]
[1743793274485,11.9195,1804.4,1804.3,0.005]
[1743793274653,14.9195,1804.4,1804.3,0.005]
[1743793275261,19.12978837,1804.4,1804.3,0.005]
[1743793275554,20.04075017,1804.4,1804.3,0.005]
[1743793275886,15.8304618,1804.4,1804.3,0.005]
[1743793276996,45.55385017,1804.4,1804.3,1e-05]
[1743793277192,6.09262,1804.2,1804.1,0.05]
[1743793277399,9.32222,1804.1,1804.0,0.005]
[1743793277562,14.08250837,1804.1,1804.0,0.005]
[1743793277765,14.08250837,1804.1,1804.0,1e-05]
[1743793280580,3.55,1804.0,1803.6,1.1]
[1743793280892,5.54569,1803.2,1803.1,0.05]
[1743793281075,11.15869,1803.2,1803.1,0.05]
[1743793281268,0.7752,1803.0,1802.2,5.54857]
[1743793281495,3.0,1802.7,1802.3,5.5482]
[1743793281661,5.613,1802.6,1802.3,5.5484]
[1743793281858,11.16059,1802.6,1802.4,0.55484]
[1743793282290,5.54785,1802.5,1802.1,6.42223]
[1743793282462,3.0,1802.4,1802.1,0.05]
[1743793282668,5.54846,1802.3,1802.1,0.05]
[1743793282872,5.614,1802.2,1802.1,0.05]
[1743793283288,11.16277,1802.2,1802.1,0.05]
[1743793283468,14.95867,1802.2,1802.1,0.05]
[1743793284985,8.54877,1802.2,1802.1,0.05]
[1743793285189,14.16277,1802.2,1802.1,0.05]
[1743793285571,11.16277,1802.2,1802.1,0.05]
[1743793285776,5.614,1802.2,1802.1,0.05]
[1743793286081,5.616,1802.4,1802.2,0.7929]
[1743793286282,5.616,1802.4,1802.2,6.34165]
[1743793286498,5.616,1802.4,1802.2,7.53563]
[1743793286699,5.616,1802.4,1802.2,1.98697]
[1743793287113,5.616,1802.4,1802.3,5.54846]
[1743793287600,5.616,1802.6,1802.3,5.54846]
[1743793287805,5.616,1802.6,1802.3,5.54825]
[1743793287991,11.16365,1802.6,1802.2,7.53561]
[1743793288306,5.54785,1802.5,1802.2,7.53561]
[1743793288501,5.616,1802.6,1802.3,5.54838]
[1743793288804,11.16373,1802.6,1802.2,1.98697]
[1743793288968,5.54812,1802.5,1802.2,1.98697]
[1743793289170,5.54877,1802.2,1802.1,0.05]
[1743793289401,11.16477,1802.2,1802.1,0.05]
[1743793290097,6.03592143,1802.2,1802.1,0.05]
[1743793290574,11.58469143,1802.2,1802.1,0.05]
[1743793291402,6.03592143,1802.2,1802.1,0.05]
[1743793291605,11.58469143,1802.2,1802.1,0.05]
[1743793292820,6.03592143,1802.2,1802.1,0.05]
[1743793293229,5.616,1802.2,1802.1,5.59908]
[1743793293384,5.616,1802.2,1802.1,6.37358]
[1743793293576,11.16487,1802.5,1802.1,11.92266]
[1743793293784,5.617,1802.5,1802.2,5.54863]
[1743793294315,5.617,1802.5,1802.2,6.185943]
[1743793294514,16.71293,1802.5,1802.2,0.637313]
[1743793294700,11.579936,1802.5,1802.1,0.8245]
[1743793295015,5.54819,1802.4,1802.1,6.37353]
[1743793295377,5.54819,1802.4,1802.1,0.8245]
[1743793295709,5.54819,1802.4,1802.1,6.37357]
[1743793296013,17.128046,1802.5,1802.1,6.3734]
[1743793296178,5.54817,1802.4,1802.1,6.3734]
[1743793296698,5.54817,1802.4,1802.1,0.8245]
[1743793297077,17.128006,1802.5,1802.1,6.37355]
[1743793297276,11.579926,1802.5,1802.1,6.37345]
[1743793297477,11.579926,1802.5,1802.1,6.37343]
[1743793297676,11.580026,1802.5,1802.1,6.37329]
[1743793297885,5.54862,1802.3,1802.1,0.8245]
[1743793298090,8.54877,1802.2,1802.1,0.05]
[1743793298907,5.54859,1802.3,1802.1,0.05]
[1743793299113,8.54825,1802.4,1802.1,0.05]
[1743793299707,5.54877,1802.2,1802.1,0.05]
[1743793300004,9.33717,1802.2,1802.1,0.05]
[1743793301109,9.88717,1802.2,1802.1,0.05]
[1743793301606,9.88717,1802.2,1802.1,1e-05]
[1743793302410,5.55092,1801.5,1801.4,0.55]
[1743793302616,11.16892,1801.5,1801.4,0.55]
[1743793302777,5.618,1801.5,1801.4,0.55]
[1743793302982,11.16892,1801.5,1801.4,0.55]
[1743793303597,5.618,1801.5,1801.4,0.55]
[1743793303799,11.16892,1801.5,1801.4,0.55]
[1743793304005,14.16892,1801.5,1801.4,0.55]
[1743793306003,14.59142179,1801.5,1801.4,0.55]
[1743793306609,5.618,1801.5,1801.4,0.55]
[1743793306812,5.55074,1801.6,1801.4,1.3378]
[1743793307010,11.16932,1801.7,1801.4,6.88901]
[1743793307311,5.54972,1801.9,1801.4,1.3378]
[1743793307482,5.54951,1802.0,1801.6,5.55034]
[1743793307676,5.54951,1802.0,1801.7,6.30567]
[1743793307894,3.0,1802.0,1801.7,11.85587]
[1743793308106,3.0,1802.0,1801.7,6.3056]
[1743793308308,16.71741,1802.1,1801.7,6.30555]
[1743793308514,11.16812,1802.1,1801.7,0.7554]
[1743793308811,8.54942,1802.0,1801.7,6.30545]
[1743793309208,3.0,1802.0,1801.7,6.30545]
[1743793309386,8.54942,1802.0,1801.7,0.7554]
[1743793310109,5.54983,1801.9,1801.7,0.7554]
[1743793310283,8.5494,1802.0,1801.7,0.7554]
[1743793310479,5.54985,1801.9,1801.7,0.7554]
[1743793310685,11.09974,1801.9,1801.7,0.7554]
[1743793311012,14.09903,1802.0,1801.5,6.35014]
[1743793311211,3.0,1802.0,1801.5,0.7994]
[1743793311411,3.0,1802.0,1801.7,5.55022]
[1743793311588,3.0,1802.0,1801.5,0.7994]
[1743793311796,5.5503,1801.8,1801.5,0.7994]
[1743793312394,5.5502,1801.8,1801.5,0.7994]
[1743793312581,10.21401,1802.0,1801.6,5.55042]
[1743793312981,11.09971,1801.9,1801.5,6.35017]
[1743793313210,5.5498,1801.9,1801.5,6.35017]
[1743793313512,11.10041,1801.8,1801.5,0.7994]
[1743793313712,5.55015,1801.8,1801.5,0.7994]
[1743793313913,5.55015,1801.8,1801.5,6.35022]
[1743793314119,5.55038,1801.7,1801.5,0.7994]
[1743793314322,0.6868118,1801.9,1801.5,0.7994]
[1743793314323,6.2365818,1801.9,1801.5,5.55066]
[1743793314498,0.6868118,1801.9,1801.6,5.55051]
[1743793314700,8.54952,1802.0,1801.7,0.8173]
[1743793314901,14.09913,1802.0,1801.7,0.8173]
[1743793315105,5.54983,1801.9,1801.7,0.8173]